Cogmind - Beta 17.1 @@@ ROGUE MODE // 2026.09.16 @ 21:17:26 Player: 4R-ZE3 Result: Destroyed by Y-45 Defender with Heavy Assault Rifle Performance ------------- Evolutions (2) 1000 Regions Visited (4) 800 Robots Destroyed (52) 260 Value Destroyed (1805) 1805 Prototype IDs (1) 20 Alien Tech Used (0) 0 Bonus (0) 0 TOTAL SCORE: 3885 Bonus ------- None Cogmind --------- Core Integrity 0/550 Matter 290/300 Energy 275/275 System Corruption 0% Temperature Cool (-10) Movement Treading (200) Ox1 Location -8/Storage Parts ------- > --- POWER (1) -------- Deuterium Engine > --- PROPULSION (4) --- Light Treads Light Treads Light Treads Wheel > --- UTILITY (3) ------ Cryofiber Web Improved Heat Sink Huge Storage Unit > --- WEAPON (3) ------- Particle Gun Particle Gun Particle Gun > --- INVENTORY (25) --- Nuclear Core Light Nuclear Core Light Nuclear Core Aluminum Leg Aluminum Leg Aluminum Leg Wheel Cryofiber Web Cryofiber Web Seismic Detector Medium Laser Medium Laser Small Laser Particle Gun Particle Gun Field Laser Advanced Beam Rifle Grenade Launcher Grenade Launcher Mining Laser Peak State ------------ > --- POWER ------------ Makeshift Power Source > --- PROPULSION ------- Light Treads Light Treads Wheel Compact Wheel > --- UTILITY ---------- Huge Storage Unit Advanced Targeting Computer Improved Light Armor Plating > --- WEAPON ----------- Subdweller Machine Gun Subdweller Machine Gun Heavy Battle Rifle > --- INVENTORY -------- Light Ion Engine Light Nuclear Core Aluminum Leg Aluminum Leg Seismic Detector Medium Laser Medium Laser Small Laser Particle Gun Subdweller Laser Subdweller Laser Subdweller Machine Gun Grenade Launcher Grenade Launcher Mining Laser [Rating: 25] Favorites ----------- Power Light Nuclear Core Engine Deuterium Engine Power Core Light Nuclear Core Propulsion Light Treads Treads Light Treads Leg Aluminum Leg Wheel Wheel Utility Huge Storage Unit Device Improved Heat Sink Storage Huge Storage Unit Processor Advanced Targeting Computer Protection Improved Light Armor Plating Weapon Particle Gun Energy Gun Particle Gun Ballistic Gun Subdweller Machine Gun Launcher Grenade Launcher Special Weapon Mining Laser Build | -11 -10 -10 -8 -8 ------- Run | Yrd Mat Sub Mat Sto Slots Evolved 4 | . . . 4 . Power . | . . . . . Propulsion 2 | . . . 2 . Utility 1 | . . . 1 . Weapon 1 | . . . 1 . Parts Attached 46 | . 12 5 25 4 Power 4 | . 1 1 2 . Engine 3 | . . 1 2 . Core 1 | . 1 . . . Reactor . | . . . . . Propulsion 15 | . 2 1 11 1 Treads 6 | . 2 1 2 1 Leg 5 | . . . 5 . Wheel 4 | . . . 4 . Hover . | . . . . . Flight . | . . . . . Utility 11 | . 4 1 4 2 Device 7 | . 2 1 2 2 Storage 1 | . 1 . . . Processor 2 | . 1 . 1 . Hackware . | . . . . . Protection 1 | . . . 1 . Artifact . | . . . . . Weapon 16 | . 5 2 8 1 Energy Gun 9 | . 3 1 4 1 Energy Cannon . | . . . . . Ballistic Gun 4 | . . . 4 . Ballistic Cannon . | . . . . . Launcher 2 | . 2 . . . Special Weapon 1 | . . 1 . . Impact Weapon . | . . . . . Slashing Weapon . | . . . . . Piercing Weapon . | . . . . . Special Melee Weapon . | . . . . . Unidentified Prototypes 1 | . . . 1 . Parts Lost 24 | . 3 1 18 2 Power 4 | . 1 . 3 . Propulsion 7 | . . 1 6 . Utility 5 | . 1 . 3 1 Weapon 8 | . 1 . 6 1 Highest Loss Streak 11 | . 2 1 11 2 To Critical Strikes . | . . . . . Average Backups 13 | . 9 14 16 20 Power 1 | . 1 1 1 3 Propulsion 3 | . 4 4 2 3 Utility 1 | . . 1 3 4 Weapon 7 | . 3 7 9 9 Tool/Special . | . . . . . Unused Backups 10 | . 1 . . 9 Power 3 | . . . . 3 Propulsion . | . . . . . Utility 3 | . 1 . . 2 Weapon 4 | . . . . 4 Tool/Special . | . . . . . Average Slot Usage (%) 97 | . 97 100 96 100 Engine 4 | . 3 4 5 9 Core 6 | . 10 9 3 . Treads 17 | . 27 28 2 19 Leg 7 | . . . 18 . Wheel 5 | . . . 12 16 Device 11 | . 11 14 8 13 Storage 11 | . 14 14 9 9 Processor 3 | . . . 8 5 Energy Gun 23 | . 23 23 21 27 Ballistic Gun 1 | . . . 4 . Launcher 1 | . 4 . . . Special Weapon 1 | . . 4 . . Peak Build Rating 25 | . 11 13 25 24 Average Rating 15 | . 9 11 22 23 On Entrance 12 | 6 6 11 13 24 Avg Prop Armor Cover (%) 17 | . . . 17 15 Naked Turns . | . . . . . Heaviest Build 100 | 11 91 91 99 100 Greatest Support 40 | 20 40 40 30 40 Greatest Overweight (x) 9 | . 2 2 9 4 Average Overweight (x) 3 | . 1 2 7 3 Largest Inventory Capacity 25 | . 25 25 25 25 Average Capacity 23 | . 20 25 25 25 Most Carried 23 | . 12 18 23 21 Average Carried 13 | . 9 14 16 20 Final Capacity 25 | 8 25 25 25 25 Final Carried 21 | 6 12 18 21 20 Class Distribution -------------------- 58% | Mutant 39% | Scavenger-Gunner Dominant Class ---------------- Mutant | -10/Materials Mutant | -10/Subcaves Scavenger-Gunner | -8/Materials Scavenger-Gunner | -8/Storage Resources | -11 -10 -10 -8 -8 ----------- Run | Yrd Mat Sub Mat Sto Matter Collected 1122 | 196 220 167 488 51 Remotely . | . . . . . Salvage Created 1860 | . 442 69 1046 303 Parts 94 | . 27 5 50 12 Haulers Intercepted 2 | . 1 . 1 . Recyclers Shooed 1 | . . . . 1 Parts Field Recycled . | . . . . . Retrieved Matter . | . . . . . Parts Self-Destructed . | . . . . . Prevented . | . . . . . Parts Restored . | . . . . . Kills | -11 -10 -10 -8 -8 ------- Run | Yrd Mat Sub Mat Sto Combat Hostiles Destroyed 44 | . 12 3 23 6 Guns 36 | . 8 1 21 6 AOE 6 | . 4 2 . . Classes Destroyed 11 | . 5 1 5 . Worker 3 | . 3 . . . Builder 2 | . . . 2 . Tunneler 1 | . 1 . . . Hauler 2 | . 1 . 1 . Swarmer 6 | . 3 . 3 . Grunt 28 | . 9 . 16 3 Duelist 1 | . . . 1 . Sentry 4 | . . . 1 3 Hunter 1 | . . . 1 . Heavy 1 | . . . 1 . Subdweller 3 | . . 3 . . Best Kill Streak 11 | . 6 2 11 5 Combat Bots Only 11 | . 4 2 11 5 Max Kills in Single Turn 4 | . 4 1 1 1 Gunslinging . | . . . . . Exploded 2 | . 2 1 . . Melee . | . . . . . Uniques/NPCs Destroyed . | . . . . . Combat | -11 -10 -10 -8 -8 -------- Run | Yrd Mat Sub Mat Sto Hostile Shots Fired 234 | . 52 11 137 34 Missed 54 | . 12 6 28 8 Hits 180 | . 40 5 109 26 Melee 5 | . . . 5 . Projectile 175 | . 40 5 104 26 Critical Strikes 10 | . . . 9 1 Damage Taken 3058 | . 480 170 2016 392 Core 616 | . 42 16 504 54 Absorbed by Shields . | . . . . . Core Remaining (%) 88 | 100 . 76 . . Volleys Fired 139 | . 45 9 69 16 Largest 3 | . 2 2 3 3 Hottest 195 | . 115 115 195 195 Shots Fired 322 | . 74 12 188 48 Gun 299 | . 59 5 187 48 Cannon . | . . . . . Launcher 20 | . 15 4 1 . Special 3 | . . 3 . . Kinetic 68 | . . . 68 . Thermal 234 | . 59 8 119 48 Explosive 20 | . 15 4 1 . Electromagnetic . | . . . . . Robot Hit Streak 27 | . 10 10 27 19 Robot Miss Streak 3 | . 3 . 2 1 Penetration Max . | . . . . . Secondary Targets 7 | . . . 4 3 Max Gunslinging Chain 1 | . . . 1 1 Shots Hit Robots 221 | . 45 8 131 37 Core Hits 98 | . 29 6 47 16 Critical Kills 1 | . . . 1 . Critical Parts Destroyed 2 | . . . 2 . Critical Strikes 14 | . 5 1 7 1 Burn 11 | . 5 1 4 1 Destroy 3 | . . . 3 . Melee Attacks . | . . . . . Impact . | . . . . . Slashing . | . . . . . Piercing . | . . . . . Sneak Attacks . | . . . . . Combat Hostiles . | . . . . . Follow-up Attacks . | . . . . . Damage Inflicted 4359 | . 922 351 2516 570 Guns 3720 | . 579 55 2516 570 Cannons . | . . . . . Explosions 628 | . 332 296 . . Melee . | . . . . . Ramming 11 | . 11 . . . Kinetic 1109 | . . . 1109 . Thermal 2611 | . 579 55 1407 570 Explosive 628 | . 332 296 . . Electromagnetic . | . . . . . Impact . | . . . . . Slashing . | . . . . . Piercing . | . . . . . Highest Corruption 1 | . 1 1 . . Average Corruption 1 | . 1 1 . . Corruption Purged . | . . . . . Corruption Blocked . | . . . . . Effects 4 | . 1 3 . . Heat Flow Errors 2 | . . 2 . . Misfires 2 | . 1 1 . . Overload Shots . | . . . . . Overflow Damage 67 | . 63 4 . . Projectiles . | . . . . . Explosions 67 | . 63 4 . . Melee . | . . . . . Knockbacks . | . . . . . Impact . | . . . . . Kinetic . | . . . . . Secondary . | . . . . . Self-Inflicted Damage 108 | . 28 80 . . Shots 6 | . 2 4 . . Rammed 7 | . 7 . . . Targets Rammed 7 | . 7 . . . Kicked . | . . . . . Crushed . | . . . . . Highest Temperature 414 | . 279 99 321 414 Average Temperature 129 | . 98 56 135 183 Received Heat Transfer 1155 | . 246 18 693 198 Effects 11 | . 2 . 8 1 Interference 9 | . 2 . 7 . Damage (minor) 2 | . . . 1 1 Siege Activations . | . . . . . Martial Activations . | . . . . . Shielding Activations . | . . . . . Robots Disrupted . | . . . . . Combat Hostiles . | . . . . . Robots Corrupted . | . . . . . Combat Hostiles . | . . . . . Parts Fried . | . . . . . Impact Corruptions . | . . . . . Robots Melted 2 | . . . 2 . Combat Hostiles 2 | . . . 2 . Parts Melted 21 | . 4 3 10 4 Heat Transferred 6463 | . 1926 222 2872 1443 Parts Sabotaged . | . . . . . Parts Stolen . | . . . . . Parts Stripped . | . . . . . Power Chain Reactions . | . . . . . Alert | -11 -10 -10 -8 -8 ------- Run | Yrd Mat Sub Mat Sto Maximum Alert Level . | . . . . . Low Security (%) 100 | . 100 . 100 100 Level 1 . | . . . . . Level 2 . | . . . . . Level 3 . | . . . . . Level 4 . | . . . . . Level 5 . | . . . . . High Security . | . . . . . Max Security . | . . . . . Peak Influence 184 | . 149 . 184 96 Initial 36 | . . . . 36 Average 80 | . 77 . 84 60 Influence Increases 1362 | . 523 . 679 160 Destroy 0b10 Robot/C 820 | . 240 . 460 120 Destroy 0b10 Robot/NC 40 | . 25 . 15 . Destroy Leader 214 | . 72 . 102 40 Successful Hack 26 | . 12 . 14 . Select Force Hacks 60 | . 60 . . . Disable Machine 45 | . 30 . 15 . Destroy Structure 97 | . 84 . 13 . Lose Combat Pursuer 60 | . . . 60 . Influence Decreases 1266 | . 443 80 592 151 Entered New Map 90 | . . 39 . 51 Time Decay 962 | . 413 41 428 80 Lost Part 214 | . 30 . 164 20 Squads Dispatched 12 | . 4 . 7 1 Investigation 3 | . 3 . . . Extermination . | . . . . . Reinforcement 6 | . 1 . 4 1 Assault . | . . . . . Garrison 3 | . . . 3 . Intercept . | . . . . . Searches Triggered . | . . . . . Construction Impeded . | . . . . . Haulers Reinforced . | . . . . . Active Scanning Responses . | . . . . . Cargo Convoy Interrupts . | . . . . . Stealth | -11 -10 -10 -8 -8 --------- Run | Yrd Mat Sub Mat Sto Distress Signals 3 | . 2 . 1 . Communications Jammed . | . . . . . Distress Signals . | . . . . . Times Spotted 68 | . 25 3 32 8 Peak Tracking Total 10 | . 4 2 10 4 Tactical Retreats 3 | . . . 3 . Traps | -11 -10 -10 -8 -8 ------- Run | Yrd Mat Sub Mat Sto Traps Triggered 2 | . 2 . . . Indirectly . | . . . . . Trap Hack Attempts . | . . . . . Triggered . | . . . . . Disarmed . | . . . . . Reprogrammed . | . . . . . Reused . | . . . . . Traps Extracted . | . . . . . Installed . | . . . . . Triggered . | . . . . . Machines | -11 -10 -10 -8 -8 ---------- Run | Yrd Mat Sub Mat Sto Machines Disabled 3 | . 2 . 1 . Max in Single Turn 1 | . 1 . 1 . Machines Repaired . | . . . . . Machines Dismantled . | . . . . . Machines Sabotaged . | . . . . . Overloaded Fab Kills . | . . . . . Hacking | -11 -10 -10 -8 -8 --------- Run | Yrd Mat Sub Mat Sto Machines Accessed 7 | . 3 . 3 1 Terminals 4 | . 1 . 2 1 Fabricators . | . . . . . Repair Stations . | . . . . . Recycling Units 2 | . 2 . . . Scanalyzers 1 | . . . 1 . Garrison Access . | . . . . . Total Hacks 22 | . 5 . 15 2 Successful 13 | . 4 . 8 1 Failed 9 | . 1 . 7 1 Catastrophic . | . . . . . Database Lockouts . | . . . . . Manual 10 | . 5 . 5 . Terminals 10 | . 3 . 5 2 Fabricators . | . . . . . Repair Stations . | . . . . . Recycling Units 2 | . 2 . . . Scanalyzers 10 | . . . 10 . Garrison Access . | . . . . . Terminal Hacks 3 | . 1 . 1 1 Open Door 1 | . . . . 1 Branch Access Points 1 | . . . 1 . Recycling Unit Index 1 | . 1 . . . Fabricator Hacks . | . . . . . Repair Station Hacks . | . . . . . Recycling Unit Hacks . | . . . . . Scanalyzer 7 | . . . 7 . Retrieve Study 7 | . . . 7 . Garrison Access Hacks . | . . . . . Unauthorized Hacks 3 | . 3 . . . Terminals 1 | . 1 . . . Botnet 1 | . 1 . . . Fabricators . | . . . . . Repair Stations . | . . . . . Recycling Units 2 | . 2 . . . Tunnel 2 | . 2 . . . Scanalyzers . | . . . . . Garrison Access . | . . . . . Data Cores Recovered . | . . . . . Used . | . . . . . Hacking Detections 3 | . 1 . 2 . Full Trace Events . | . . . . . Feedback Events . | . . . . . Feedback Blocked . | . . . . . Robot Schematics Acquired . | . . . . . Robots Built . | . . . . . Authchips . | . . . . . Time . | . . . . . Total Robot Build Rating . | . . . . . Part Schematics Acquired . | . . . . . Parts Built . | . . . . . Authchips . | . . . . . Time . | . . . . . Total Part Build Rating . | . . . . . Part Studies Acquired 7 | . . . 7 . Parts Repaired . | . . . . . Time . | . . . . . Parts Recycled . | . . . . . Recycled Matter . | . . . . . Retrieved Matter . | . . . . . Retrieved Components . | . . . . . Parts Scanalyzed . | . . . . . Part Schematics Acquired . | . . . . . Parts Damaged . | . . . . . Bothacking | -11 -10 -10 -8 -8 ------------ Run | Yrd Mat Sub Mat Sto Used RIF Installer . | . . . . . Robots Hacked . | . . . . . Non-combat . | . . . . . Combat . | . . . . . Robot Hacks Applied . | . . . . . Relay Couplers Released . | . . . . . Fabnet Peak Effective % . | . . . . . Robots Rewired . | . . . . . Allies Hacked . | . . . . . Hacks Repelled . | . . . . . Allies | -11 -10 -10 -8 -8 -------- Run | Yrd Mat Sub Mat Sto Total Allies . | . . . . . Largest Group . | . . . . . Highest-Rated Group . | . . . . . Highest-Rated Ally . | . . . . . Total Orders . | . . . . . Ally Attacks . | . . . . . Total Damage . | . . . . . Kills . | . . . . . Allies Corrupted . | . . . . . Allies Melted . | . . . . . Intel | -11 -10 -10 -8 -8 ------- Run | Yrd Mat Sub Mat Sto Active Infowar (turns) 824 | . . 791 33 . Seismic 824 | . . 791 33 . Robot Analysis Total . | . . . . . Derelict Logs Recovered 2 | . . 2 . . Drone Launches . | . . . . . Drone Recoveries . | . . . . . Exploration | -11 -10 -10 -8 -8 ------------- Run | Yrd Mat Sub Mat Sto Turns Passed 3772 | . 1139 966 1502 165 Spaces Moved 1156 | 1 345 287 465 58 Core . | . . . . . Treads 635 | . 345 287 . 3 Legs 58 | 1 . . 57 . Wheels 463 | . . . 408 55 Hover . | . . . . . Flight . | . . . . . Fastest Speed 120 | 120 160 320 130 130 Average Speed 265 | 120 270 320 243 135 Slowest Speed 750 | 120 320 320 750 240 Overloaded Moves . | . . . . . Propulsion Burnouts . | . . . . . Robots Hopped . | . . . . . Potential Cave-ins . | . . . . . Cave-ins Triggered . | . . . . . Exploration Rate (%) 25 | 2 55 21 39 10 Regions Visited 4 Branch Regions 2 Pre-discovered Areas 3 | . 2 1 . . Known Exits Taken 1 | . . . 1 . Unknown Exits Taken 3 | 1 1 1 . . Scrap Searched . | . . . . . Spaces Dug . | . . . . . Terrain Destroyed 147 | . 124 13 10 . Melee . | . . . . . Projectile 4 | . . . 4 . AOE 143 | . 124 13 6 . Terrain Rammed . | . . . . . Walls Destroyed . | . . . . . Machines Disabled . | . . . . . Actions | -11 -10 -10 -8 -8 --------- Run | Yrd Mat Sub Mat Sto Total 1568 | . 468 315 678 107 Wait 160 | . 44 3 86 27 Move 1152 | . 344 286 464 58 Hop . | . . . . . Pick Up 34 | . 7 5 20 2 Fast Attach 11 | . 4 1 6 . Attach 24 | . 1 1 20 2 Detach 4 | . . 1 3 . Swap 35 | . 14 9 10 2 Drop 2 | . 2 . . . Fire 139 | . 45 9 69 16 Melee . | . . . . . Ram . | . . . . . Kick . | . . . . . Crush 7 | . 7 . . . Escape Stasis . | . . . . . Rewire . | . . . . . Trap . | . . . . . Miscellaneous . | . . . . . Route ------- -11/Scrapyard -10/Materials (discovered 3 exits: [*Min x2] / [*Sub]) -10/Subcaves (discovered 2 exits: *Mat / Rec) -8/Materials (discovered 2 exits: [*Fac] / *Sto) -8/Storage History --------- Turn | Location | Event 1 | -11/Scrapyard | Discovered new exit (range 0) 1 | -11/Scrapyard | Entered Materials 67 | -10/Materials | Discovered new exit (range 16) 311 | -10/Materials | Build established: Mutant 321 | -10/Materials | Discovered new exit (range 16) 1108 | -10/Materials | Discovered new exit (range 3) 1140 | -10/Materials | Entered Subcaves 1160 | -10/Subcaves | Learned Materials terminal intel 1216 | -10/Subcaves | Identified exit to Recycling 1277 | -10/Subcaves | Learned location of Zion (-7) 1277 | -10/Subcaves | Met a Zionite searching for "candidates" 1778 | -10/Subcaves | Shifting Twisted Machinery released Mak. Power Source 1778 | -10/Subcaves | Shifting Twisted Machinery released Sub. Machine Gun 1814 | -10/Subcaves | Shifting Twisted Machinery released Sub. Laser 1914 | -10/Subcaves | Shifting Twisted Machinery released Sub. Monowheel 2010 | -10/Subcaves | Discovered new exit (range 5) 2106 | -10/Subcaves | Entered Materials 2106 | -8/Materials | Evolved 4 slots: Propulsion x2, Utility x1, Weapon x1 2107 | -8/Materials | Loaded intel: 12 terminal locations 2251 | -8/Materials | Lost 6 parts (1p1n2u2w) 2632 | -8/Materials | Build established: Scavenger-Gunner 2736 | -8/Materials | Garrison activated, responded to threat 2750 | -8/Materials | Core integrity fell below 50% 2822 | -8/Materials | Core integrity fell below 20% 2848 | -8/Materials | Lost 11 parts (2p4n1u4w) 2883 | -8/Materials | Destroyed 11 combat bots 3303 | -8/Materials | Discovered new exit (range 10) 3441 | -8/Materials | Identified exit to Storage 3608 | -8/Materials | Entered Storage 3773 | -8/Storage | Destroyed by Y-45 Defender with Heavy Assault Rifle Last Messages --------------- 03700_ Switching to secondary target: G-47 Trooper. 03703_ Imp. Heat Sink destroyed. 03710_ Aluminum Leg melted. 03710_ Imp. Heat Sink melted. 03710_ Aluminum Leg melted. 03710_ G-47 Trooper destroyed. 03712_ R-06 Scavenger collects Lgt. Treads+. 03715_ Overheating: Lgt. Treads+ damaged (-22). 03715_ R-06 Scavenger collects Particle Gun+. 03718_ R-06 Scavenger collects Lgt. Armor Plating. 03719_ Acquired Particle Gun+. 03721_ Acquired Lgt. Treads+. 03722_ R-06 Scavenger collects Imp. Ion Engine. 03725_ Acquired 25 matter. 03768_ Y-45 Defender heat damages Heat Sink. 03770_ Y-45 Defender destroyed. 03770_ Switching to secondary target: Y-45 Defender. Map ----- +----------------------------------------------------+ | | | | | | | | | | | | | | | | | | | | | | | | | | | | | | | | | | | ??????????????#?###########?#????????????????????? | | ??????????????# """"" """"" ##???????????????????? | | ??????????????# """"" """"" #???????????????????? | | ??????????????# """"" """"" #????????????????????? | | ??????????????? ?????????????????????? | | ????????????????? ???????????????????????? | | ??????????????????? ?????????????????????????? | | #####################+#####??????????????????????? | | = %=%! @#??????????????????????? | | * o * [ #??????????????????????? | | ! % % % #??????????????????????? | | ###+################### #??????????????????????? | | ?# #?????????????????# =#####??????????????????? | | !# #?????????????????# !%#"T"#+###??????????????? | | #?????????????????# Y #???????? | | !#T##?????????????????# ^ ###??????????????? | | ###???????????????????+ ^ "" #????????????????? | | ??????????????????????# G" #????????????????? | | ??????????????????????# "" #????????????????? | | ??????????????????????# #????????????????? | | ??????????????????????# ???????????????? | | ??????????????????????##+#########???????????????? | | ?????????????????????????????????????????????????? | | ?????????????????????????????????????????????????? | | ?????????????????????????????????????????????????? | | ?????????????????????????????????????????????????? | | ?????????????????????????????????????????????????? | | ?????????????????????????????????????????????????? | | ?????????????????????????????????????????????????? | | ?????????????????????????????????????????????????? | | ?????????????????????????????????????????????????? | | ?????????????????????????????????????????????????? | | ?????????????????????????????????????????????????? | +----------------------------------------------------+ Best States ------------- Heat Dissipation 59 Energy Generation 16 Energy Capacity 275 Matter Stores 300 Matter Capacity 300 Sight Range 16 Terrain Scan Density 10 Base Temperature (-) 100 Armor Coverage 150 Evasion (%) 40 Targeting Accuracy 8 Recoil Reduction 3 Item Schematics ----------------- None Robot Schematics ------------------ None Fabricated ------------ Nothing Repaired ---------- Nothing Studied --------- Particle Gun | -8/Materials | Hacked Lgt. Treads | -8/Materials | Hacked Wheel | -8/Materials | Hacked Med. Laser | -8/Materials | Hacked Nuclear Core | -8/Materials | Hacked Field Laser | -8/Materials | Hacked Deuterium Engine | -8/Materials | Hacked Alien Tech Used ----------------- None Achievements -------------- None Challenges ------------ None Game ------ Seed DataTrackerBiocell Manual? 0 Play Time 00:17:33 Cumulative 419.7 hours Start 2026.09.16 @ 21:01:04 End 2026.09.16 @ 21:17:26 Sessions 1 Manual Loads 0 Difficulty Rogue Special Mode None Game No. 371 Rogue 317 Adventurer 54 Explorer 0 Win Type - Total 25 Types 15/2/1/1/1/1/1/1/1/1 Lore% 83 Gallery% 72 Achievement% 72 Wizard Run 0 Options --------- Layout 1 ASCII 0 Keyboard 0 Movement Mouse Keybinds 1 Fullscreen 2 Font 32/Tamsyn Map View 50x35 Zoom Use 0% Tactical HUD 1 Map Filters NONE Filters NONE Steam 1 RUN: 43fc19a1-979a-45e8-a7c0-7ff85835e014